fUST/lending_fUST_20251020
["ID","MTS","AMOUNT","RATE_DAILY","PERIOD"]
[391883461,1760951445504,-336.53503533,0.000339,120]
[391883462,1760951445514,-159.97751647,0.00033942,7]
[391883463,1760951445523,-152.79503771,0.00033994,60]
[391883464,1760951445532,-160.0,0.00034,120]
[391883465,1760951445543,-160.0,0.00034,120]
[391883466,1760951445553,-402.9601108,0.00034,120]
[391883467,1760951445563,-688.49839244,0.00034006,2]
[391883468,1760951445572,-251.11897888,0.00034006,2]
[391883469,1760951445581,-1152.0,0.00034026,2]
[391883470,1760951445591,-153.0,0.00034047,2]
[391883471,1760951445600,-153.0,0.00034047,2]
[391883472,1760951445610,-153.0,0.00034047,2]
[391883473,1760951445619,-153.0,0.00034048,2]
[391883474,1760951445628,-153.0,0.00034048,2]
[391883475,1760951445638,-153.0,0.00034054,2]
[391883476,1760951445648,-153.0,0.00034054,2]
[391883477,1760951445657,-153.0,0.00034055,2]
[391883478,1760951445666,-4187.18,0.000341,14]
[391883479,1760951445675,-209.497521,0.00034178,15]
[391883480,1760951445685,-174.380786,0.00034178,15]
[391883481,1760951445695,-2999.0,0.00034246,120]
[391883482,1760951445705,-750.0,0.00034333,5]
[391883483,1760951445714,-177.24960773,0.00034343,120]
[391883484,1760951445723,-155.0,0.00034521,30]
[391883485,1760951445732,-713.97283296,0.00034554,2]
[391883486,1760951445742,-260.4103811,0.00034554,2]
[391883487,1760951445751,-907.02076465,0.00034881,5]
[391883488,1760951445760,-155.13107926,0.00034889,7]
[391883489,1760951445770,-166.0,0.00034889,7]
[391883490,1760951445779,-166.0,0.00034889,7]
[391883491,1760951445789,-627.30921148,0.000349,120]
[391883492,1760951445799,-366.30484536,0.000349,120]
[391883493,1760951445808,-336.53503533,0.000349,120]
[391883494,1760951445817,-2999.0,0.00034931,120]
[391883495,1760951445826,-262.026779,0.00035,120]
[391883496,1760951445836,-740.38982778,0.00035102,2]
[391883497,1760951445845,-270.0455652,0.00035102,2]
[391883498,1760951445854,-475.03765,0.0003516,120]
[391883499,1760951445864,-151.0,0.000353,12]
[391883500,1760951445873,-2999.0,0.00035616,120]
[391883501,1760951445883,-500.0,0.00035616,120]
[391883502,1760951445892,-500.0,0.00035616,120]
[391883503,1760951445901,-767.7842514,0.0003565,2]
[391883504,1760951445911,-280.03725112,0.0003565,2]
[391883505,1760951445920,-175493.4,0.000357,14]
[391883506,1760951445931,-26347.55,0.000358,14]
[391883507,1760951445940,-5000.0,0.00035834,4]
[391883508,1760951445949,-7291.5005824,0.000359,2]
[391883509,1760951445959,-2609.52677127,0.00035901,5]
[391883510,1760951445968,-500.0,0.00035901,7]
[391883511,1760951445977,-160.0,0.00036,120]
[391883512,1760951445986,-160.0,0.00036,120]
[391883513,1760951445995,-304662.75194471,0.00036,60]
[391883514,1760951446014,-1055164.46748981,0.00036,60]
[391883527,1760951446703,-3e-08,0.00036,60]
[391883574,1760951447240,-152.71420843,0.000333,13]
[391883575,1760951447251,-860.51621957,0.000333,13]
[391883576,1760951447259,-1000.0,0.000338,13]
[391883577,1760951447268,-218958.37105338,0.00036,60]
[391884457,1760951498001,417.15472785,0.00024073,2]
[391884458,1760951578456,150.0,0.00020242,2]
[391884459,1760951578967,150.0,0.00021206,2]
[391884460,1760951579378,150.0,0.0002217,2]
[391884461,1760951579900,167.56,0.00023134,2]
[391884466,1760951614006,-209.46,0.00024098,2]
[391884467,1760951614028,-32.10850385,0.00024098,2]
[391884468,1760951636024,500.0,0.00030137,120]
[391884469,1760951650422,634.79,0.00030137,120]
[391884470,1760951717656,151.0,0.000235,7]
[391884471,1760951717961,151.0,0.00021,3]
[391884472,1760951718299,151.0,0.000185,2]
[391884473,1760951719109,151.0,0.00016,2]
[391884474,1760951719425,151.0,0.000135,2]
[391884475,1760951719826,151.0,0.00011,2]
[391884476,1760951741887,-117.89149615,0.00024098,2]
[391884477,1760951741908,-500.90345611,0.00024573,2]
[391884478,1760951741930,-500.0,0.00024573,2]
[391884479,1760951741950,-500.0,0.00024573,2]
[391884480,1760951741969,-500.0,0.00024573,2]
[391884481,1760951741988,-500.0,0.00024573,2]
[391884482,1760951742008,-500.0,0.00024573,2]
[391884483,1760951742029,-500.0,0.00024573,2]
[391884484,1760951742049,-501.48257379,0.00024573,2]
[391884485,1760951742070,-501.17060227,0.00024573,2]
[391884486,1760951742090,-500.0,0.00024573,2]
[391884487,1760951742109,-500.0,0.00024573,2]
[391884488,1760951742130,-500.0,0.00024573,2]
[391884489,1760951742153,-500.0,0.00024573,2]
[391884490,1760951742173,-500.0,0.00024573,2]
[391884491,1760951742193,-500.0,0.00024573,2]
[391884492,1760951742216,-300.0,0.00024581,2]
[391884493,1760951742238,-300.0,0.00024581,2]
[391884494,1760951742259,-1200.0,0.00024581,2]
[391884495,1760951742281,-999.54,0.00024582,3]
[391884496,1760951742302,-499.77,0.00024582,3]
[391884497,1760951742324,-249.89,0.00024582,3]
[391884498,1760951742344,-749.68,0.00024582,3]
[391884499,1760951742365,-696.87,0.00024582,3]
[391884500,1760951742386,-1178.02,0.00024582,3]
[391884501,1760951742407,-276.38279341,0.00024591,2]
[391884502,1760951742428,-504.16055998,0.00024591,2]
[391884503,1760951742448,-169.8232582,0.00024591,2]
[391884504,1760951742469,-265.2825838,0.00024591,2]
[391884505,1760951746784,617.85,0.00024582,10]
[391884506,1760951747409,589.01,0.00024582,3]
[391884507,1760951752682,-370000.0,0.00024592,2]
[391884508,1760951753561,315.65866304,0.0002459,2]
[391884509,1760951753828,29361.35,0.000246,7]
[391884510,1760951768655,500.0,0.00024591,2]
[391884511,1760951768717,500.0,0.00024591,2]
[391884512,1760951768880,500.0,0.00024591,2]
[391884513,1760951777539,500.0,0.00024591,2]
[391884514,1760951777568,500.0,0.00024591,2]
[391884515,1760951777598,500.0,0.00024591,2]
[391884516,1760951777823,500.0,0.00024591,2]
[391884517,1760951777851,500.0,0.00024591,2]
[391884518,1760951777878,500.0,0.00024591,2]
[391884519,1760951777907,500.0,0.00024591,2]
[391884520,1760951777932,500.0,0.00024591,2]
[391884521,1760951777957,500.0,0.00024591,2]
[391884522,1760951777986,500.0,0.00024591,2]
[391884523,1760951778108,500.0,0.00024591,2]
[391884524,1760951778156,500.0,0.00024591,2]
[391884525,1760951778181,500.0,0.00024591,2]
[391884526,1760951778210,500.0,0.00024591,2]
[391884527,1760951778235,500.0,0.00024591,2]
[391884528,1760951778279,500.0,0.00024591,2]
[391884529,1760951778305,500.0,0.00024591,2]
[391884530,1760951778330,500.0,0.00024591,2]
[391884531,1760951778356,500.0,0.00024591,2]
[391884532,1760951778382,500.0,0.00024591,2]
[391884533,1760951778408,419.7445148,0.00024591,2]
[391884534,1760951778509,500.0,0.00024591,2]
[391884535,1760951778548,505.5994592,0.00024573,2]
[391884536,1760951778574,500.0,0.00024591,2]
[391884537,1760951778624,500.0,0.00024591,2]
[391884538,1760951778887,500.0,0.00024591,2]
[391884539,1760951779072,501.16024205,0.00024573,2]
[391884540,1760951780140,500.0,0.00024573,2]
[391884541,1760951782356,-500.0,0.0002469,2]
[391884542,1760951782378,-500.0,0.0002469,2]
[391884543,1760951782398,-300.0,0.0002469,2]
[391884544,1760951782418,-1000.0,0.00024691,2]
[391884545,1760951782437,-1000.0,0.00024691,2]
[391884546,1760951782457,-1000.0,0.00024691,2]
[391884547,1760951782481,-1000.0,0.00024691,2]
[391884548,1760951782502,-1000.0,0.00024691,2]
[391884549,1760951782522,-1000.0,0.00024691,2]
[391884550,1760951782544,-500.0,0.00024691,2]
[391884551,1760951782565,-500.0,0.00024691,2]
[391884552,1760951782585,-500.0,0.00024691,2]
[391884553,1760951782607,-500.0,0.00024691,2]
[391884554,1760951782628,-500.0,0.00024691,2]
[391884555,1760951782649,-500.0,0.00024691,2]
[391884556,1760951782670,-500.0,0.00024691,2]
[391884557,1760951782691,-500.0,0.00024691,2]
[391884558,1760951782711,-500.0,0.00024691,2]
[391884559,1760951782732,-500.0,0.00024691,2]
[391884560,1760951782753,-500.0,0.00024691,2]
[391884561,1760951782774,-500.0,0.00024691,2]
[391884562,1760951782799,-500.0,0.00024691,2]
[391884563,1760951782819,-500.0,0.00024691,2]
[391884564,1760951782843,-500.0,0.00024691,2]
[391884565,1760951782865,-500.0,0.00024691,2]
[391884566,1760951782888,-500.0,0.00024691,2]
[391884567,1760951782910,-500.0,0.00024691,2]
[391884568,1760951782931,-500.0,0.00024691,2]
[391884569,1760951782951,-500.0,0.00024691,2]
[391884570,1760951782972,-500.0,0.00024691,2]
[391884571,1760951782992,-500.0,0.00024691,2]
[391884572,1760951783013,-500.0,0.00024691,2]
[391884573,1760951783034,-500.0,0.00024691,2]
[391884574,1760951783055,-500.0,0.00024691,2]
[391884575,1760951783075,-500.0,0.00024691,2]
[391884576,1760951783100,-500.0,0.00024691,2]
[391884577,1760951783123,-500.0,0.00024691,2]
[391884578,1760951783145,-500.0,0.00024691,2]
[391884579,1760951783166,-500.0,0.00024691,2]
[391884580,1760951783192,-500.0,0.00024691,2]
[391884581,1760951783214,-556.79662483,0.00024691,2]
[391884582,1760951783236,-172.5,0.00024698,2]
[391884583,1760951783260,-214.3374491,0.00024699,2]
[391884584,1760951783282,-19753.1087144,0.000248,2]
[391884585,1760951783305,-3292.18478574,0.00024863,2]
[391884586,1760951783329,-18846.83222313,0.000249,2]
[391884587,1760951825220,1494.5077,0.00033893,120]
[391884589,1760952025688,956.70807,0.00013699,2]
[391884590,1760952025893,956.70807,0.00020187,2]
[391884591,1760952034095,-167.66807833,0.00024122,2]
[391884592,1760952036530,-172.905253,0.00024122,2]
[391884593,1760952041979,150.0,0.00020037,2]
[391884594,1760952042427,224.43,0.00020991,2]
[391884595,1760952042831,336.64,0.00021945,2]
[391884596,1760952043351,448.86,0.000229,2]
[391884597,1760952043908,561.07,0.00023854,2]
[391884598,1760952059478,5000.0,0.00024073,2]
[391884599,1760952082770,1365.59386,0.00024073,2]
[391884600,1760952082793,2245.29007026,0.00024073,2]
[391884601,1760952120721,150.0,0.00020029,2]
[391884602,1760952121154,180.62,0.00020983,2]
[391884603,1760952121606,270.93,0.00021936,2]
[391884604,1760952122067,361.24,0.0002289,2]
[391884605,1760952122509,451.55,0.00023844,2]
[391884606,1760952130575,6340.37992974,0.00024,2]
[391884607,1760952130596,10000.01,0.00024,2]
[391884608,1760952130618,2609.31007026,0.00024,2]
[391884609,1760952134864,560.74408129,0.00024073,2]
[391884610,1760952153535,5000.0,0.00024073,2]
[391884611,1760952169368,500.0,0.00030136,120]
[391884612,1760952176039,1829.95584845,0.00024073,2]
[391884613,1760952176060,3170.04415155,0.00024073,2]
[391884614,1760952197860,150.0,0.00020012,2]
[391884615,1760952198375,167.53,0.00020965,2]
[391884616,1760952198853,251.29,0.00021917,2]
[391884617,1760952199288,335.06,0.0002287,2]
[391884618,1760952199504,5000.0,0.00024073,2]
[391884619,1760952199742,418.82,0.00023823,2]
[391884620,1760952205238,417.15472785,0.00024073,2]
[391884621,1760952222632,90.1111206,0.00024073,2]
[391884622,1760952222655,4909.8888794,0.00024073,2]
[391884623,1760952223441,-224.18171477,0.00024122,2]
[391884624,1760952223463,-117.59530062,0.00024122,2]
[391884625,1760952245309,5000.0,0.00024073,2]
[391884626,1760952253643,90.1211206,0.00024073,2]
[391884627,1760952253664,1669.49122422,0.00024073,2]
[391884628,1760952276718,150.0,0.00020018,2]
[391884629,1760952277146,150.0,0.00020971,2]
[391884630,1760952277561,200.79,0.00021925,2]
[391884631,1760952277972,267.72,0.00022878,2]
[391884632,1760952278453,334.65,0.00023831,2]
[391884634,1760952343597,662.82394506,0.00033913,60]
[391884635,1760952354300,150.0,0.00020048,2]
[391884636,1760952354752,150.0,0.00021003,2]
[391884637,1760952355119,177.28,0.00021957,2]
[391884638,1760952355527,236.37,0.00022912,2]
[391884639,1760952355922,295.47,0.00023867,2]
[391884641,1760952432495,150.0,0.00020088,2]
[391884642,1760952432915,150.0,0.00021045,2]
[391884643,1760952433331,160.22,0.00022001,2]
[391884644,1760952433765,213.63,0.00022958,2]
[391884645,1760952434201,267.03,0.00023915,2]
[391884646,1760952470054,5277.35877578,0.00018,2]
[391884647,1760952470078,10000.01,0.00018,2]
[391884648,1760952470105,5345.30673682,0.00018,2]
[391884650,1760952473797,4654.70326318,0.00018,2]
[391884651,1760952473820,473.35909169,0.00018,2]
[391884653,1760952479612,3054.28443357,0.00024073,2]
[391884654,1760952495258,3240.38765518,0.00024073,2]
[391884655,1760952503914,2114.26976099,0.000176,2]
[391884656,1760952508022,286.55933203,0.0001,2]
[391884657,1760952508383,291.57404562,0.0002,2]
[391884658,1760952508975,150.0,0.00020059,2]
[391884659,1760952509418,150.0,0.00021014,2]
[391884660,1760952509496,239.57568092,0.00022,2]
[391884661,1760952509518,118.33768755,0.00022,2]
[391884662,1760952510055,212.03,0.00021969,2]
[391884663,1760952510492,282.71,0.00022924,2]
[391884664,1760952510894,353.39,0.00023879,2]
[391884665,1760952511071,9033.54231245,0.0002,2]
[391884666,1760952511094,5511.59321481,0.0002,2]
[391884667,1760952512016,299.66133951,0.0003,120]
[391884668,1760952513357,4488.41678519,0.00017,2]
[391884669,1760952513379,10000.01,0.00017,2]
[391884670,1760952513400,10000.01,0.00017,2]
[391884671,1760952513421,3794.39099264,0.00017,2]
[391884672,1760952520072,260.1305958,0.0003,120]
[391884673,1760952521670,1273.42700618,0.00021,2]
[391884674,1760952522508,200.50376646,0.0002,2]
[391884675,1760952523469,1021.63864727,0.000225,2]
[391884676,1760952523498,205.08185768,0.00021,2]
[391884677,1760952523646,3504.96772977,0.00023,2]
[391884678,1760952523686,1823.63100211,0.00023,2]
[391884679,1760952523795,8176.37899789,0.000215,2]
[391884680,1760952523820,2189.63086762,0.000215,2]
[391884681,1760952524137,1000.0,0.000235,2]
[391884682,1760952525012,2343.27692446,0.0001,2]
[391884683,1760952525782,3189.98580102,0.00024073,2]
[391884684,1760952526790,1277.1164069,0.00024,30]
[391884685,1760952526813,8422.8935931,0.00024,30]
[391884686,1760952533781,1577.1164069,0.00024073,2]
[391884687,1760952533804,3422.8835931,0.00024073,2]
[391884688,1760952536716,196.0,0.00018,2]
[391884689,1760952536901,196.0,0.00018002,2]
[391884690,1760952537077,196.0,0.00018003,2]
[391884691,1760952537393,196.0,0.00018005,2]
[391884692,1760952537590,196.0,0.00018007,2]
[391884693,1760952537766,196.0,0.00018008,2]
[391884694,1760952537940,196.0,0.0001801,2]
[391884695,1760952538123,196.0,0.00018012,2]
[391884696,1760952538306,196.0,0.00018013,2]
[391884697,1760952538479,196.0,0.00018015,2]
[391884698,1760952538663,196.0,0.00018017,2]
[391884699,1760952538853,196.0,0.00018018,2]
[391884700,1760952539040,196.0,0.0001802,2]
[391884701,1760952539223,196.0,0.00018022,2]
[391884702,1760952539397,196.0,0.00018023,2]
[391884703,1760952539576,196.0,0.00018025,2]
[391884704,1760952539745,196.0,0.00018027,2]
[391884705,1760952539921,196.0,0.00018028,2]
[391884706,1760952540108,196.0,0.0001803,2]
[391884707,1760952540285,196.0,0.00018032,2]
[391884708,1760952540458,196.0,0.00018033,2]
[391884709,1760952540629,196.0,0.00018035,2]
[391884710,1760952540789,196.0,0.00018037,2]
[391884711,1760952540981,196.0,0.00018038,2]
[391884712,1760952541159,196.0,0.0001804,2]
[391884713,1760952541335,196.0,0.00018042,2]
[391884714,1760952541657,196.0,0.00018043,2]
[391884715,1760952541726,196.0,0.00018045,2]
[391884716,1760952542102,196.0,0.00018047,2]
[391884717,1760952542280,196.0,0.00018048,2]
[391884718,1760952542458,196.0,0.0001805,2]
[391884719,1760952542624,196.0,0.00018052,2]
[391884720,1760952542990,196.0,0.00018053,2]
[391884721,1760952543044,196.0,0.00018055,2]
[391884722,1760952543198,196.0,0.00018057,2]
[391884723,1760952543367,196.0,0.00018058,2]
[391884724,1760952543542,196.0,0.0001806,2]
[391884725,1760952543712,196.0,0.00018062,2]
[391884726,1760952543886,196.0,0.00018063,2]
[391884727,1760952544057,196.0,0.00018065,2]
[391884728,1760952544219,196.0,0.00018067,2]
[391884729,1760952544398,196.0,0.00018068,2]
[391884730,1760952544660,196.0,0.0001807,2]
[391884731,1760952544830,196.0,0.00018072,2]
[391884732,1760952544999,196.0,0.00018073,2]
[391884733,1760952545155,196.0,0.00018075,2]
[391884734,1760952545329,196.0,0.00018077,2]
[391884735,1760952545525,196.0,0.00018078,2]
[391884736,1760952545729,196.0,0.0001808,2]
[391884737,1760952545935,196.0,0.00018082,2]
[391884738,1760952546132,196.0,0.00018083,2]
[391884739,1760952546307,196.0,0.00018085,2]
[391884740,1760952546486,196.0,0.00018087,2]
[391884741,1760952546926,196.0,0.00018088,2]
[391884742,1760952547149,196.0,0.0001809,2]
[391884743,1760952547319,196.0,0.00018092,2]
[391884744,1760952547492,196.0,0.00018093,2]
[391884745,1760952547667,196.0,0.00018095,2]
[391884746,1760952547842,196.0,0.00018097,2]
[391884747,1760952547874,10000.0,0.00030137,120]
[391884748,1760952548018,196.0,0.00018098,2]
[391884749,1760952548201,325.44552676,0.000181,2]
[391884750,1760952549654,397.78397594,0.00024073,2]
[391884751,1760952557776,2808.7804973,0.00024073,2]
[391884752,1760952557799,2191.2195027,0.00024073,2]
[391884754,1760952587037,150.0,0.00020093,2]
[391884755,1760952587522,257.98,0.0002105,2]
[391884756,1760952588441,386.97,0.00022007,2]
[391884757,1760952588891,515.96,0.00022964,2]
[391884758,1760952589376,644.95,0.00023921,2]
[391884759,1760952629135,300.0,0.000239,2]
[391884836,1760952637602,-300.0,0.00024299,2]
[391884838,1760952637612,-300.0,0.00024299,2]
[391884841,1760952637625,-300.0,0.00024299,2]
[391884842,1760952637634,-1200.0,0.00024299,2]
[391884845,1760952637644,-1605.6295374,0.000243,2]
[391884847,1760952637656,-10430.72925118,0.000243,2]
[391884849,1760952637666,-1200.0,0.00024589,2]
[391884851,1760952637675,-500.0,0.00024591,2]
[391884853,1760952637685,-168.07636764,0.00024591,2]
[391884855,1760952637694,-500.0,0.00024591,2]
[391884857,1760952637704,-500.0,0.00024591,2]
[391884859,1760952637713,-500.0,0.00024591,2]
[391884861,1760952637722,-500.0,0.00024591,2]
[391884863,1760952637732,-500.0,0.00024591,2]
[391884865,1760952637741,-500.0,0.00024591,2]
[391884867,1760952637751,-500.0,0.00024591,2]
[391884869,1760952637760,-500.0,0.00024591,2]
[391884871,1760952637769,-500.0,0.00024591,2]
[391884873,1760952637778,-500.0,0.00024591,2]
[391884875,1760952637787,-339.20102539,0.00024591,2]
[391884877,1760952637796,-500.0,0.00024591,2]
[391884879,1760952637805,-514.65224162,0.00024591,2]
[391884881,1760952637815,-500.0,0.00024591,2]
[391884883,1760952637824,-677.2948286,0.00024622,2]
[391884885,1760952637834,-770.2349919,0.00024622,2]
[391884887,1760952637843,-1000.0,0.00024691,2]
[391884889,1760952637852,-1000.0,0.00024691,2]
[391884891,1760952637862,-1000.0,0.00024691,2]
[391884894,1760952637873,-1000.0,0.00024691,2]
[391884896,1760952637883,-1000.0,0.00024691,2]
[391884897,1760952637892,-1000.0,0.00024691,2]
[391884899,1760952637901,-1000.0,0.00024691,2]
[391884902,1760952637911,-1000.0,0.00024691,2]
[391884903,1760952637920,-1000.0,0.00024691,2]
[391884905,1760952637929,-1000.0,0.00024691,2]
[391884907,1760952637938,-699.33056489,0.00024691,2]
[391884909,1760952637947,-773.94,0.00024877,2]
[391884911,1760952637956,-151.47383939,0.00024964,2]
[391884913,1760952637966,-500.0,0.00024978,2]
[391884915,1760952637975,-18021.25542271,0.00024979,2]
[391884917,1760952637985,-1608.22083128,0.00025,2]
[391884918,1760952637994,-645.5906354,0.00025,3]
[391884919,1760952638010,-638.3112946,0.00025,3]
[391884920,1760952638161,-362.87230939,0.00025,2]
[391884921,1760952638172,-400.17946326,0.00025121,2]
[391884922,1760952638182,-1000.0,0.00025121,2]
[391884923,1760952638191,-1000.0,0.00025121,2]
[391884924,1760952638201,-199.0,0.00025205,7]
[391884925,1760952638211,-531.98100988,0.00025231,2]
[391884926,1760952638221,-199.0,0.00025479,8]
[391884927,1760952638236,-1000.0,0.000255,2]
[391884928,1760952638247,-500.0,0.000255,2]
[391884929,1760952638256,-450.91181194,0.00025539,2]
[391884930,1760952638266,-500.0,0.00025539,2]
[391884931,1760952638277,-500.0,0.00025539,2]
[391884932,1760952638287,-500.0,0.00025539,2]
[391884933,1760952638297,-574.34399189,0.00025539,2]
[391884934,1760952638306,-500.0,0.00025539,2]
[391884935,1760952638316,-501.37341469,0.00025539,2]
[391884936,1760952638325,-530.31561982,0.00025539,2]
[391884937,1760952638335,-522.95357546,0.00025539,2]
[391884938,1760952638344,-500.0,0.00025539,2]
[391884939,1760952638354,-500.0,0.00025539,2]
[391884940,1760952638363,-503.6411007,0.00025539,2]
[391884941,1760952638372,-500.0,0.00025539,2]
[391884942,1760952638381,-500.0,0.00025539,2]
[391884943,1760952638391,-500.0,0.00025539,2]
[391884944,1760952638401,-500.0,0.00025539,2]
[391884945,1760952638410,-500.0,0.00025539,2]
[391884946,1760952638420,-500.0,0.00025539,2]
[391884947,1760952638430,-500.0,0.00025539,2]
[391884948,1760952638439,-500.0,0.00025539,2]
[391884949,1760952638448,-343.29286625,0.00025539,2]
[391884950,1760952638458,-500.0,0.00025539,2]
[391884951,1760952638467,-183.46701701,0.00025539,2]
[391884952,1760952638476,-500.0,0.00025539,2]
[391884953,1760952638486,-150.0,0.00025539,2]
[391884954,1760952638495,-502.61773981,0.00025539,2]
[391884955,1760952638505,-1091.8798605,0.00025668,2]
[391884956,1760952638514,-185.21247534,0.00025668,2]
[391884957,1760952638523,-300.86007013,0.00025676,2]
[391884958,1760952638533,-199.0,0.00025753,9]
[391884959,1760952638542,-500.0,0.00025774,2]
[391884960,1760952638552,-21983.7419243,0.000258,2]
[391884961,1760952638561,-514.87,0.00025824,10]
[391884962,1760952638571,-478.95,0.00025824,10]
[391884963,1760952638580,-902.93,0.00025834,2]
[391884964,1760952638591,-499.78,0.00025952,3]
[391884965,1760952638601,-322.0,0.00025968,2]
[391884966,1760952638610,-151.0,0.00026,16]
[391884967,1760952638619,-53792.38778879,0.00026,30]
[391884968,1760952638629,-1849.0,0.00026003,3]
[391884969,1760952638639,-500.0,0.00026003,3]
[391884970,1760952638649,-586.0,0.00026003,3]
[391884971,1760952638665,-151.0,0.00026003,3]
[391884972,1760952638674,-500.0,0.00026003,3]
[391884973,1760952638684,-277.90927765,0.00026003,3]
[391884974,1760952638694,-151.0,0.00026003,3]
[391884975,1760952638703,-151.0,0.00026015,2]
[391884976,1760952638712,-151.0,0.00026015,2]
[391884977,1760952638721,-151.0,0.00026015,2]
[391884978,1760952638731,-500.0,0.00026015,2]
[391884979,1760952638742,-151.59120751,0.00026015,2]
[391884980,1760952638752,-500.0,0.00026015,2]
[391884981,1760952638762,-500.0,0.00026015,2]
[391884982,1760952638772,-500.0,0.00026015,2]
[391884983,1760952638782,-305.36256827,0.00026015,2]
[391884984,1760952638792,-151.0,0.00026015,2]
[391884985,1760952638803,-500.0,0.00026015,2]
[391884986,1760952638813,-500.0,0.00026015,2]
[391884987,1760952638823,-151.0,0.00026015,2]
[391884988,1760952638833,-151.0,0.00026015,2]
[391884989,1760952638845,-153.56444799,0.00026015,2]
[391884990,1760952638856,-500.0,0.00026015,2]
[391884991,1760952638865,-500.0,0.00026015,2]
[391884992,1760952638878,-500.0,0.00026015,2]
[391884993,1760952638888,-199.0,0.00026027,10]
[391884994,1760952638898,-500.0,0.00026048,2]
[391884995,1760952638908,-213.3186526,0.0002605,2]
[391884996,1760952638918,-151.0,0.0002605,2]
[391884997,1760952638928,-500.0,0.0002605,2]
[391884998,1760952638938,-151.0,0.0002605,2]
[391884999,1760952638948,-151.0,0.0002605,2]
[391885000,1760952638959,-151.56637366,0.0002605,2]
[391885001,1760952638968,-198.69607341,0.0002605,2]
[391885002,1760952638978,-500.99255926,0.0002605,2]
[391885003,1760952638988,-350.04085116,0.00026054,2]
[391885004,1760952638998,-957.56581779,0.00026057,2]
[391885005,1760952639008,-1849.0,0.00026058,3]
[391885006,1760952639017,-500.0,0.00026058,3]
[391885007,1760952639026,-586.0,0.00026058,3]
[391885008,1760952639036,-151.0,0.00026058,3]
[391885009,1760952639046,-500.0,0.00026058,3]
[391885010,1760952639055,-159.25706955,0.00026058,3]
[391885011,1760952639066,-151.0,0.0002607,2]
[391885012,1760952639076,-151.0,0.0002607,2]
[391885013,1760952639086,-151.0,0.0002607,2]
[391885014,1760952639095,-500.0,0.0002607,2]
[391885015,1760952639105,-500.0,0.0002607,2]
[391885016,1760952639115,-151.0,0.0002607,2]
[391885017,1760952639126,-500.0,0.0002607,2]
[391885018,1760952639136,-500.0,0.0002607,2]
[391885019,1760952639146,-245.35055886,0.0002607,2]
[391885020,1760952639156,-500.0,0.0002607,2]
[391885021,1760952639165,-500.0,0.0002607,2]
[391885022,1760952639175,-500.0,0.0002607,2]
[391885023,1760952639185,-500.0,0.00026087,2]
[391885024,1760952639195,-620.22356658,0.00026087,2]